bitfinex-derivatives/quotes_BTCF0:USTF0_20241104
["timestamp","ask_amount","ask_price","bid_price","bid_amount"]
[1730743558263,0.05779796,67815.0,67814.0,0.249371]
[1730743559558,0.13156796,67815.0,67814.0,0.001]
[1730743560369,0.7216,67820.0,67814.0,0.074771]
[1730743560662,0.05179796,67815.0,67814.0,0.1756]
[1730743560867,0.05179796,67815.0,67814.0,0.249371]
[1730743561370,0.41259796,67815.0,67814.0,0.001]
[1730743561565,0.48636796,67815.0,67814.0,0.001]
[1730743561962,0.3608,67815.0,67797.0,0.24835]
[1730743562160,0.05179796,67793.0,67789.0,1.79496182]
[1730743562372,0.05179796,67793.0,67792.0,0.073794]
[1730743562969,0.05179796,67793.0,67792.0,1.573794]
[1730743563178,0.05179796,67793.0,67792.0,1.5]
[1730743563658,0.05179796,67793.0,67792.0,0.014]
[1730743564164,0.3608,67798.0,67790.0,1.5]
[1730743564358,0.3608,67798.0,67797.0,0.29496182]
[1730743564662,0.3608,67798.0,67797.0,0.36875182]
[1730743564663,0.41259796,67798.0,67797.0,0.36875182]
[1730743565566,0.41259796,67798.0,67792.0,0.015]
[1730743565760,0.3608,67798.0,67795.0,0.073792]
[1730743566170,0.05179796,67796.0,67795.0,0.073792]
[1730743567173,0.05179796,67796.0,67795.0,0.077792]
[1730743567371,0.05179796,67796.0,67795.0,0.078792]
[1730743568482,0.3608,67804.0,67795.0,0.078792]
[1730743568483,0.3608,67804.0,67798.0,0.073789]
[1730743568773,0.3608,67804.0,67803.0,0.36874482]
[1730743569469,0.3608,67804.0,67803.0,1.86874482]
[1730743569965,0.3668,67804.0,67803.0,1.86874482]
[1730743570774,0.006,67804.0,67803.0,1.86874482]
[1730743570965,0.006,67804.0,67803.0,1.96952182]
[1730743571273,0.006,67804.0,67803.0,1.748343]
[1730743571466,0.006,67804.0,67803.0,1.75770012]
[1730743571774,0.006,67804.0,67803.0,1.58314012]
[1730743572377,0.006,67804.0,67803.0,1.50935712]
[1730743572673,0.006,67804.0,67803.0,1.5]
[1730743572674,0.05779796,67804.0,67803.0,1.5]
[1730743572867,0.05779796,67804.0,67795.0,0.29496182]
[1730743572868,0.073786,67801.0,67795.0,0.073792]
[1730743573068,0.05779796,67804.0,67795.0,0.08343501]
[1730743573069,0.41259796,67796.0,67795.0,0.08343501]
[1730743573268,0.05179796,67796.0,67795.0,0.08343501]
[1730743573574,0.05179796,67796.0,67795.0,1.87839683]
[1730743574570,0.05179796,67796.0,67795.0,1.88139683]
[1730743575466,0.05179796,67796.0,67795.0,1.58643501]
[1730743575863,0.05179796,67796.0,67795.0,1.77880552]
[1730743576076,0.3608,67805.0,67804.0,0.073782]
[1730743576270,0.3608,67805.0,67804.0,0.26515251]
[1730743576476,0.41259796,67805.0,67804.0,0.26515251]
[1730743577276,0.41259796,67805.0,67804.0,0.19137051]
[1730743577576,0.073783,67804.0,67798.0,0.19137051]
[1730743577874,0.3608,67799.0,67798.0,0.19137051]
[1730743578182,0.41259796,67799.0,67798.0,0.19137051]
[1730743578371,0.41259796,67799.0,67798.0,0.26515951]
[1730743578778,0.41259796,67799.0,67798.0,0.26615951]
[1730743579077,0.41459796,67799.0,67798.0,0.26615951]
[1730743580376,0.41459796,67799.0,67798.0,0.26515951]
[1730743580581,0.41459796,67799.0,67798.0,0.26615951]
[1730743587183,0.41459796,67799.0,67798.0,0.19237051]
[1730743587481,0.41459796,67799.0,67798.0,0.26615951]
[1730743588683,0.3628,67799.0,67798.0,0.26615951]
[1730743588875,0.002,67799.0,67798.0,0.26615951]
[1730743589577,0.002,67799.0,67798.0,0.34771216]
[1730743589980,0.002,67799.0,67798.0,0.33929438]
[1730743590382,0.002,67799.0,67798.0,0.42079391]
[1730743590881,0.002,67799.0,67798.0,0.34765431]
[1730743592280,0.002,67799.0,67798.0,0.38452855]
[1730743592878,0.0549,67823.0,67805.0,0.07378]
[1730743593081,0.05179796,67818.0,67815.0,0.3608]
[1730743593280,0.0693,67832.0,67822.0,0.19137051]
[1730743593471,0.05179796,67826.0,67822.0,0.19137051]
[1730743593672,0.05179796,67826.0,67825.0,0.073759]
[1730743593875,0.05179796,67826.0,67825.0,1.573759]
[1730743594083,0.12555596,67826.0,67825.0,1.5]
[1730743594688,0.05179796,67826.0,67815.0,0.001]
[1730743594889,0.3608,67827.0,67815.0,0.001]
[1730743594890,0.434569,67816.0,67815.0,0.001]
[1730743595182,0.84716696,67816.0,67815.0,0.001]
[1730743595388,0.77339796,67816.0,67810.0,0.00084]
[1730743595583,0.77339796,67816.0,67809.0,0.00221203]
[1730743595584,0.05179796,67811.0,67809.0,0.00221203]
[1730743595791,0.48637296,67810.0,67809.0,0.00221203]
[1730743596984,0.073787,67799.0,67795.0,0.073792]
[1730743597280,0.84718496,67799.0,67795.0,0.073792]
[1730743598077,0.84718496,67799.0,67796.0,0.00955683]
[1730743598382,0.84718496,67799.0,67798.0,0.04687424]
[1730743598979,0.84818496,67799.0,67798.0,0.05487424]
[1730743599584,0.84818496,67799.0,67798.0,0.04487424]
[1730743599793,0.84818496,67799.0,67798.0,0.05387424]
[1730743600385,0.84818496,67799.0,67798.0,0.04487424]
[1730743600582,0.84718496,67799.0,67798.0,0.04187424]
[1730743601290,0.073806,67782.0,67781.0,0.07320724]
[1730743601488,0.073806,67782.0,67781.0,0.073807]
[1730743601489,0.3608,67782.0,67781.0,0.073807]
[1730743601690,0.434606,67782.0,67781.0,1.573807]
[1730743601903,0.434606,67782.0,67781.0,1.5]
[1730743602982,0.434606,67782.0,67781.0,1.514]
[1730743603299,0.434606,67782.0,67781.0,1.587807]
[1730743603300,0.3608,67782.0,67781.0,1.587807]
[1730743603993,0.3618,67782.0,67781.0,1.592807]
[1730743604190,0.3618,67782.0,67781.0,1.519]
[1730743604898,0.30157696,67782.0,67781.0,1.519]
[1730743605390,0.37538296,67782.0,67781.0,1.519]
[1730743606583,0.30157696,67782.0,67781.0,1.519]
[1730743607189,0.37538296,67782.0,67781.0,1.519]
[1730743608182,0.37538296,67782.0,67781.0,0.019]
[1730743608386,0.073816,67773.0,67771.0,0.073818]
[1730743608586,0.073816,67773.0,67767.0,0.00221328]
[1730743608587,0.073819,67770.0,67769.0,0.07320724]
[1730743608800,0.073819,67770.0,67767.0,0.00221328]
[1730743608801,0.073821,67768.0,67767.0,0.00221328]
[1730743609004,0.516501,67768.0,67767.0,0.00221328]
[1730743609492,0.47961751,67768.0,67767.0,0.00221328]
[1730743609694,0.03693751,67768.0,67767.0,0.00221328]
[1730743611001,0.03693751,67768.0,67754.0,0.03689819]
[1730743611002,0.073835,67755.0,67754.0,0.03689819]
[1730743611195,0.434635,67755.0,67754.0,0.03689819]
[1730743611587,0.877395,67755.0,67754.0,0.03689819]
[1730743613193,0.434635,67755.0,67754.0,0.11073419]
[1730743613902,0.437635,67755.0,67754.0,0.03689819]
[1730743616188,0.438635,67755.0,67754.0,0.03689819]
[1730743616388,0.435635,67755.0,67754.0,0.03689819]
[1730743616605,0.438635,67755.0,67754.0,0.03689819]
[1730743617294,0.435635,67755.0,67754.0,0.03689819]
[1730743617500,0.436635,67755.0,67754.0,0.03689819]
[1730743618307,0.435635,67755.0,67754.0,0.03689819]
[1730743618602,0.439635,67755.0,67754.0,0.03689819]
[1730743619407,0.435635,67755.0,67754.0,0.03689819]
[1730743619596,0.439635,67755.0,67754.0,0.03689819]
[1730743619795,0.440635,67755.0,67754.0,0.03689819]
[1730743620502,0.438635,67755.0,67754.0,0.03689819]
[1730743620695,0.440635,67755.0,67754.0,0.03689819]
[1730743620901,0.436635,67755.0,67754.0,0.03689819]
[1730743621209,0.883395,67755.0,67754.0,0.03689819]
[1730743621409,0.881395,67755.0,67754.0,0.03689819]
[1730743621597,0.877395,67755.0,67754.0,0.03789819]
[1730743621797,1.29493051,67755.0,67733.0,0.0734]
[1730743622014,1.29493051,67755.0,67721.0,0.073872]
[1730743622015,0.3608,67737.0,67721.0,0.073872]
[1730743622208,0.3608,67737.0,67734.0,0.073856]
[1730743622397,0.073863,67731.0,67730.0,0.073863]
[1730743622597,0.073863,67730.0,67722.0,0.0734]
[1730743622798,0.073863,67730.0,67725.0,0.073868]
[1730743623612,0.073863,67730.0,67722.0,0.147271]
[1730743623997,0.074863,67730.0,67729.0,0.01221407]
[1730743624303,0.074863,67730.0,67729.0,0.01]
[1730743624504,0.3608,67724.0,67689.0,0.07320724]
[1730743624704,0.795494,67701.0,67695.0,0.0739]
[1730743624903,0.795494,67701.0,67700.0,0.0549]
[1730743625206,0.795494,67701.0,67677.0,0.07392]
[1730743625207,0.073913,67684.0,67673.0,0.00966518]
[1730743625408,0.073913,67684.0,67661.0,0.19137051]
[1730743625409,0.073922,67676.0,67661.0,0.19137051]
[1730743625599,0.3608,67662.0,67647.0,0.26532351]
[1730743625806,0.3608,67669.0,67666.0,0.073932]
[1730743626003,0.3608,67669.0,67652.0,0.3608]
[1730743626311,0.073937,67663.0,67653.0,0.073946]
[1730743626607,0.3608,67663.0,67654.0,0.073945]
[1730743626805,0.073937,67662.0,67655.0,0.073944]
[1730743627109,0.3608,67663.0,67650.0,0.00960343]
[1730743627310,0.3608,67663.0,67656.0,1.5]
[1730743627311,0.434742,67657.0,67656.0,1.5]
[1730743629207,0.435742,67657.0,67656.0,1.5]
[1730743629407,0.436742,67657.0,67656.0,1.506]
[1730743630815,0.3628,67657.0,67656.0,1.579943]
[1730743631211,0.3608,67664.0,67656.0,2.14077051]
[1730743631512,0.3608,67664.0,67659.0,0.07394]
[1730743631900,0.3608,67664.0,67657.0,0.073942]
[1730743632100,0.3608,67664.0,67656.0,2.44153051]
[1730743632305,0.434721,67677.0,67661.0,0.073937]
[1730743632503,0.434721,67677.0,67660.0,0.3608]
[1730743632504,0.001,67664.0,67663.0,0.073936]
[1730743632711,0.073918,67679.0,67668.0,0.07393]
[1730743632913,0.3608,67677.0,67663.0,1.573935]
[1730743633113,0.073925,67673.0,67664.0,0.073935]
[1730743633309,0.3608,67677.0,67663.0,1.50076]
[1730743633503,0.434735,67664.0,67663.0,1.5]
[1730743633707,0.073947,67653.0,67648.0,0.1602]
[1730743634010,0.073951,67650.0,67648.0,0.1602]
[1730743634211,0.073951,67650.0,67649.0,1.5]
[1730743634512,0.073951,67650.0,67643.0,0.03695873]
[1730743634513,0.073954,67646.0,67643.0,0.03695873]
[1730743634709,0.3608,67650.0,67643.0,0.03695873]
[1730743634710,0.073956,67645.0,67643.0,0.03695873]
[1730743634922,0.3608,67650.0,67643.0,0.03695873]
[1730743635105,0.3608,67650.0,67648.0,0.002]
[1730743635307,0.3618,67650.0,67648.0,0.002]
[1730743635818,0.001,67646.0,67643.0,0.03895873]
[1730743636615,0.073957,67644.0,67643.0,0.03895873]
[1730743636816,0.434757,67644.0,67643.0,0.03895873]
[1730743637225,0.434757,67644.0,67643.0,0.04695873]
[1730743637614,0.434757,67644.0,67643.0,0.04495873]
[1730743638326,0.436757,67644.0,67643.0,0.04495873]
[1730743638717,0.002,67644.0,67643.0,0.11891673]
[1730743639226,0.003,67644.0,67643.0,0.11891673]
[1730743639433,0.001,67650.0,67649.0,0.073951]
[1730743639643,0.001,67650.0,67649.0,0.517431]
[1730743639825,0.3608,67660.0,67649.0,0.517431]
[1730743640027,0.3608,67660.0,67651.0,0.19137051]
[1730743640228,0.3608,67660.0,67657.0,0.073942]
[1730743641130,0.00337767,67664.0,67659.0,0.073939]
[1730743641331,0.00221767,67664.0,67660.0,0.073938]
[1730743641531,0.00221767,67664.0,67652.0,0.073948]
[1730743641742,0.00221767,67664.0,67662.0,0.073936]
[1730743641933,0.3608,67667.0,67658.0,0.19137051]
[1730743642135,0.001,67660.0,67659.0,0.07394]
[1730743642444,0.002,67660.0,67659.0,0.07394]
[1730743642650,0.002,67660.0,67659.0,0.51734]
[1730743643136,0.001,67660.0,67659.0,0.52634]
[1730743643339,0.002,67660.0,67659.0,0.08294]
[1730743643731,0.001,67660.0,67659.0,0.08294]
[1730743643931,0.074935,67664.0,67659.0,0.07394]
[1730743644234,0.074939,67660.0,67659.0,0.007]
[1730743644431,0.075939,67660.0,67659.0,0.01]
[1730743645037,0.074939,67660.0,67659.0,0.01]
[1730743645532,0.074939,67660.0,67659.0,0.009]
[1730743645738,0.075939,67660.0,67659.0,0.012]
[1730743646338,0.075939,67660.0,67659.0,0.01]
[1730743647037,0.075939,67660.0,67636.0,0.00221783]
[1730743647038,0.073957,67644.0,67636.0,0.00221783]
[1730743647341,0.073964,67637.0,67636.0,0.00221783]
[1730743647540,0.434764,67637.0,67636.0,0.00221783]
[1730743648544,0.434764,67637.0,67636.0,0.00521783]
[1730743648545,0.435764,67637.0,67636.0,0.00521783]
[1730743649542,0.436764,67637.0,67636.0,0.00721783]
[1730743650437,0.436764,67637.0,67636.0,0.08118283]
[1730743650438,0.3628,67637.0,67636.0,0.08118283]
[1730743650941,0.3628,67637.0,67636.0,0.00721783]
[1730743651141,0.436764,67637.0,67636.0,0.00721783]
[1730743651851,0.3628,67637.0,67636.0,0.00721783]
[1730743652040,0.3628,67637.0,67636.0,0.08118283]
[1730743652342,0.002,67637.0,67636.0,0.08118283]
[1730743652542,0.3608,67643.0,67641.0,0.073959]
[1730743652935,0.3608,67643.0,67640.0,0.04398322]
[1730743653136,0.3608,67643.0,67642.0,0.11794222]
[1730743653337,0.3608,67643.0,67642.0,0.073959]
[1730743653741,0.3608,67656.0,67642.0,0.44352]
[1730743653953,0.3608,67656.0,67655.0,0.073945]
[1730743654348,0.3608,67656.0,67655.0,0.517385]
[1730743654853,0.00221787,67661.0,67659.0,0.07394]
[1730743655245,0.073932,67667.0,67659.0,0.07394]
[1730743655447,0.073932,67667.0,67660.0,0.073939]
[1730743655648,0.3608,67669.0,67661.0,0.23777676]
[1730743655845,0.3608,67669.0,67662.0,0.16389425]
[1730743656047,0.073932,67667.0,67662.0,0.07355675]
[1730743656444,0.075932,67667.0,67662.0,0.07355675]
[1730743657154,0.073933,67666.0,67662.0,0.07355675]
[1730743657457,0.073933,67666.0,67661.0,0.07355675]
[1730743657750,0.009,67667.0,67666.0,0.073932]
[1730743658165,0.009,67667.0,67666.0,0.163699]
[1730743658649,0.073926,67672.0,67666.0,0.07355675]
[1730743658841,0.3608,67675.0,67666.0,0.07355675]
[1730743658842,0.073929,67669.0,67666.0,0.07355675]
[1730743659042,0.073929,67669.0,67664.0,0.07355675]
[1730743659343,0.073929,67669.0,67660.0,1.76506825]
[1730743659344,0.3608,67675.0,67663.0,0.07355675]
[1730743659544,0.3608,67669.0,67661.0,0.07355675]
[1730743659848,0.3608,67669.0,67666.0,0.04413766]
[1730743659849,0.073931,67667.0,67666.0,0.04413766]
[1730743660455,0.07394,67659.0,67658.0,0.07355675]
[1730743660655,0.3608,67659.0,67652.0,0.07355675]
[1730743660845,0.3608,67659.0,67642.0,0.07355675]
[1730743660846,0.073953,67647.0,67642.0,0.07355675]
[1730743661042,0.3608,67646.0,67643.0,1.5]
[1730743661250,0.3608,67646.0,67643.0,1.57355675]
[1730743661251,0.073957,67644.0,67643.0,1.57355675]
[1730743661454,0.073957,67644.0,67643.0,1.5]
[1730743662042,0.073957,67644.0,67639.0,0.07355675]
[1730743662357,0.073963,67638.0,67637.0,0.07355675]
[1730743662545,0.073963,67638.0,67637.0,1.57355675]
[1730743662745,0.073963,67638.0,67637.0,1.5]
[1730743662950,0.3608,67640.0,67636.0,0.07577458]
[1730743663149,0.073964,67637.0,67636.0,0.00221783]
[1730743663553,0.073964,67637.0,67636.0,0.06109984]
[1730743663758,0.073964,67637.0,67636.0,0.00221783]
[1730743664648,0.001,67637.0,67636.0,0.00321783]
[1730743665055,0.001,67637.0,67636.0,0.00621783]
[1730743665056,0.074964,67637.0,67636.0,0.00621783]
[1730743665452,0.001,67637.0,67636.0,0.00621783]
[1730743665646,0.001,67637.0,67636.0,0.16841335]
[1730743665843,0.002,67637.0,67636.0,0.0978566]
[1730743666052,0.002,67637.0,67636.0,0.00621783]
[1730743666352,0.002,67637.0,67636.0,0.17138252]
[1730743667148,0.002,67637.0,67636.0,0.17136183]
[1730743667658,0.002,67637.0,67636.0,0.24532683]
[1730743667955,0.3608,67656.0,67649.0,0.073951]
[1730743668150,0.073945,67655.0,67649.0,0.05884812]
[1730743668455,0.073946,67654.0,67650.0,1.55884812]
[1730743668755,0.073946,67654.0,67653.0,0.05884812]
[1730743669351,0.073947,67653.0,67650.0,1.50076]
[1730743669549,0.3648,67656.0,67650.0,1.5]
[1730743669749,0.3648,67656.0,67654.0,0.05884722]
[1730743670361,0.073949,67651.0,67650.0,1.5]
[1730743670653,0.073947,67653.0,67650.0,0.0588562]
[1730743671047,0.073947,67653.0,67652.0,0.0588562]
[1730743671245,0.011,67654.0,67651.0,1.5]
[1730743671451,0.084946,67654.0,67651.0,1.5]
[1730743671754,0.3608,67656.0,67651.0,1.5]
[1730743671755,0.073947,67653.0,67651.0,1.5]
[1730743672751,0.073947,67654.0,67651.0,1.57656015]
[1730743673253,0.0143,67677.0,67673.0,0.073924]
[1730743673453,0.0143,67677.0,67652.0,0.86997545]
[1730743673454,0.3608,67690.0,67676.0,0.55217051]
[1730743673646,0.0695,67696.0,67684.0,0.05883083]
[1730743673849,0.0695,67696.0,67683.0,0.19137051]
[1730743673850,0.0695,67696.0,67685.0,0.05883083]
[1730743674155,0.073909,67688.0,67684.0,0.05883083]
[1730743674349,0.3608,67692.0,67684.0,0.05883083]
[1730743674558,0.0695,67696.0,67685.0,0.05883083]
[1730743674858,0.0695,67696.0,67690.0,0.19137051]
[1730743675058,0.0755,67696.0,67690.0,0.19137051]
[1730743675864,0.0705,67696.0,67690.0,0.19137051]
[1730743676067,0.0715,67696.0,67690.0,0.19137051]
[1730743676455,0.0715,67696.0,67691.0,1.5]
[1730743677762,0.0715,67696.0,67695.0,0.073901]
[1730743677968,0.0705,67696.0,67691.0,1.935464]
[1730743678173,0.0705,67696.0,67691.0,1.8608]
[1730743678460,0.0705,67696.0,67693.0,0.073903]
[1730743679867,0.0705,67696.0,67691.0,1.86156]
[1730743680067,0.0705,67696.0,67695.0,0.073901]
[1730743680467,0.0705,67696.0,67691.0,1.86156]
[1730743680686,0.001,67696.0,67695.0,0.073901]
[1730743680866,0.0708,67715.0,67708.0,0.073887]
[1730743681262,0.0708,67715.0,67708.0,1.934687]
[1730743681568,0.0708,67715.0,67708.0,2.12605751]
[1730743682367,0.00921664,67709.0,67708.0,2.12705751]
[1730743682566,0.007,67709.0,67708.0,2.12705751]
[1730743683176,0.007,67709.0,67708.0,2.12805751]
[1730743683673,0.008,67709.0,67708.0,2.13505751]
[1730743683969,0.168539,67709.0,67708.0,0.39854543]
[1730743684270,0.168539,67709.0,67708.0,0.47243243]
[1730743684469,0.161539,67709.0,67708.0,0.47143243]
[1730743684875,0.1006033,67709.0,67708.0,1.97143243]
[1730743685069,0.15822823,67709.0,67708.0,1.581887]
[1730743685267,0.15922823,67709.0,67708.0,0.090887]
[1730743685873,0.15922823,67709.0,67708.0,2.033967]
[1730743686171,0.14851287,67709.0,67708.0,2.033967]
[1730743686370,0.14851287,67709.0,67708.0,1.590887]
[1730743686577,0.14751287,67709.0,67708.0,1.582887]
[1730743686766,0.14851287,67709.0,67708.0,0.13181025]
[1730743686967,0.50931287,67709.0,67708.0,0.13181025]
[1730743687165,0.57746691,67709.0,67708.0,0.13181025]
[1730743687465,0.21566691,67709.0,67708.0,0.12281025]
[1730743687674,0.14851287,67709.0,67708.0,0.13081025]
[1730743688469,0.50931287,67709.0,67708.0,0.05692325]
[1730743688679,0.57746691,67709.0,67708.0,0.05692325]
[1730743689176,0.57646691,67709.0,67708.0,0.04492325]
[1730743689475,0.14851287,67709.0,67708.0,0.13081025]
[1730743689679,0.09290106,67709.0,67708.0,0.13081025]
[1730743690270,0.3083411,67709.0,67708.0,0.13081025]
[1730743690577,0.0908484,67709.0,67708.0,0.11981025]
[1730743690772,0.002,67709.0,67708.0,0.12781025]
[1730743691374,0.001,67709.0,67708.0,0.11981025]
[1730743691675,0.3628,67709.0,67708.0,0.12781025]
[1730743691877,0.002,67709.0,67708.0,0.05392325]
[1730743692068,0.001,67709.0,67708.0,0.11881025]
[1730743692271,0.001,67709.0,67708.0,0.12181025]
[1730743692581,0.3628,67709.0,67708.0,0.05592325]
[1730743693281,0.3628,67709.0,67708.0,0.05492325]
[1730743693477,0.3628,67709.0,67708.0,0.12881025]
[1730743693682,0.002,67709.0,67708.0,0.12881025]
[1730743694586,0.3618,67709.0,67708.0,0.04692325]
[1730743694879,0.3628,67709.0,67708.0,0.05492325]
[1730743695273,0.3628,67709.0,67708.0,0.12881025]
[1730743695869,0.001,67709.0,67708.0,0.11881025]
[1730743696180,0.002,67709.0,67708.0,0.12681025]
[1730743696485,0.001,67709.0,67708.0,0.11881025]
[1730743696784,0.002,67709.0,67708.0,0.12881025]
[1730743697183,0.073888,67707.0,67705.0,0.00942584]
[1730743697375,0.073888,67707.0,67702.0,1.50076]
[1730743697376,0.0721,67708.0,67702.0,0.00076]
[1730743697681,0.3608,67703.0,67698.0,0.073897]
[1730743697887,0.3608,67703.0,67697.0,0.00931064]
[1730743698184,0.073901,67695.0,67694.0,0.00305558]
[1730743698383,0.3608,67695.0,67680.0,0.00962625]
[1730743698687,0.3608,67682.0,67680.0,1.573917]
[1730743698883,0.3608,67682.0,67680.0,1.5]
[1730743699077,0.3608,67682.0,67681.0,0.073916]
[1730743700077,0.3618,67682.0,67681.0,0.073916]
[1730743700479,0.3618,67682.0,67680.0,1.50376]
[1730743700677,0.001,67682.0,67680.0,1.503]
[1730743700985,0.001,67682.0,67681.0,0.073916]
[1730743701382,0.002,67682.0,67681.0,0.073916]
[1730743701984,0.001,67682.0,67681.0,0.073916]
[1730743702192,0.002,67682.0,67681.0,0.073916]
[1730743702375,0.434709,67688.0,67687.0,0.07391]
[1730743702376,0.3608,67688.0,67687.0,0.07391]
[1730743702691,0.52234029,67688.0,67682.0,0.073915]
[1730743702889,0.08756362,67687.0,67684.0,0.19137051]
[1730743703198,0.04059784,67686.0,67685.0,0.073911]
[1730743704185,0.04055622,67686.0,67685.0,0.073911]
[1730743704485,0.04055622,67686.0,67685.0,0.075911]
[1730743705797,0.4296,67694.0,67685.0,0.09455639]
[1730743706092,0.4296,67694.0,67693.0,0.19137051]
[1730743706288,0.4296,67694.0,67693.0,0.26492327]
[1730743706488,0.4296,67694.0,67693.0,0.35744688]
[1730743706790,0.4296,67694.0,67693.0,0.35777348]
[1730743707696,0.4416,67694.0,67693.0,0.35777348]
[1730743708592,0.4416,67694.0,67693.0,0.35762017]
[1730743709397,0.515502,67694.0,67693.0,0.09234666]
[1730743709592,0.515502,67694.0,67693.0,0.0735596]
[1730743709796,0.4416,67694.0,67692.0,0.0735596]
[1730743709993,0.073903,67693.0,67691.0,0.0735596]
[1730743710187,0.073903,67693.0,67692.0,0.0735596]
[1730743711195,0.073903,67693.0,67692.0,0.35791115]
[1730743711196,0.008,67693.0,67692.0,0.35791115]
[1730743711498,0.43076,67694.0,67693.0,0.10283444]
[1730743711704,0.43076,67694.0,67693.0,0.19547108]
[1730743711705,0.4296,67694.0,67693.0,0.19547108]
[1730743711990,0.4296,67694.0,67693.0,0.28373439]
[1730743713488,0.514502,67694.0,67693.0,0.12256808]
[1730743713688,0.514502,67694.0,67693.0,0.02993144]
[1730743714400,0.4406,67694.0,67693.0,0.02993144]
[1730743714587,0.4356,67694.0,67693.0,0.10583444]
[1730743715799,0.4296,67694.0,67693.0,0.10783444]
[1730743716000,0.3608,67694.0,67693.0,0.10783444]
[1730743716294,0.3608,67694.0,67693.0,0.10683444]
[1730743716498,0.3608,67694.0,67693.0,1.60483444]
[1730743716688,0.3608,67694.0,67693.0,1.60983444]
[1730743717089,0.3608,67701.0,67700.0,0.073895]
[1730743717289,0.00221643,67702.0,67701.0,0.073894]
[1730743717491,0.071,67706.0,67705.0,0.07389]
[1730743717700,0.073884,67711.0,67705.0,1.5]
[1730743717901,0.073884,67711.0,67707.0,0.19137051]
[1730743718095,0.0752,67713.0,67707.0,0.19137051]
[1730743718291,0.3608,67708.0,67705.0,1.50084]
[1730743718493,0.3608,67708.0,67705.0,1.5]
[1730743718494,0.073889,67706.0,67705.0,1.5]
[1730743718799,0.3608,67708.0,67705.0,1.5]
[1730743719386,0.434687,67708.0,67705.0,1.5]
[1730743719586,0.3608,67708.0,67705.0,1.5]
[1730743719786,0.007,67706.0,67705.0,1.501]
[1730743719992,0.086889,67706.0,67705.0,1.502]
[1730743720296,0.086889,67706.0,67705.0,0.002]
[1730743720500,0.073902,67694.0,67693.0,0.25723339]
[1730743720688,0.073902,67694.0,67693.0,1.75723339]
[1730743721396,0.3608,67695.0,67693.0,1.84054778]
[1730743721791,0.3608,67695.0,67694.0,0.09241679]
[1730743722295,0.3608,67695.0,67694.0,0.09243839]
[1730743723092,0.3608,67695.0,67694.0,0.09643839]
[1730743723494,0.3608,67695.0,67694.0,0.008]
[1730743723697,0.3608,67695.0,67694.0,0.004]
[1730743723896,0.3608,67695.0,67694.0,0.081902]
[1730743724097,0.3608,67695.0,67694.0,0.17342676]
[1730743725701,0.3608,67708.0,67694.0,0.17342676]
[1730743725895,0.073889,67706.0,67705.0,0.19137051]
[1730743726104,0.3608,67708.0,67705.0,0.19137051]
[1730743726404,0.434687,67708.0,67705.0,0.19137051]
[1730743726905,0.3608,67708.0,67705.0,0.19137051]
[1730743727301,0.3608,67708.0,67694.0,0.17442676]
[1730743727302,0.3608,67708.0,67698.0,0.19137051]
[1730743727502,0.07389,67705.0,67700.0,0.073895]
[1730743727901,0.07389,67705.0,67701.0,0.073894]
[1730743728405,0.3608,67702.0,67694.0,0.09252476]
[1730743728908,0.073898,67698.0,67695.0,0.073901]
[1730743729407,0.073897,67699.0,67697.0,0.073899]
[1730743729606,0.073901,67695.0,67694.0,0.16642576]
[1730743729805,0.073901,67695.0,67694.0,0.17042576]
[1730743730005,0.073901,67695.0,67694.0,0.20735665]
[1730743730599,0.073901,67695.0,67694.0,0.31768046]
[1730743730796,0.3608,67695.0,67694.0,0.24377946]
[1730743730998,0.434701,67695.0,67694.0,0.13345565]
[1730743731203,0.3608,67695.0,67694.0,0.13345565]
[1730743731403,0.434701,67695.0,67694.0,0.13345565]
[1730743731998,0.434701,67695.0,67694.0,0.03693089]
[1730743732198,0.434701,67695.0,67694.0,0.04093089]
[1730743732412,0.3608,67695.0,67694.0,0.11483289]
[1730743732915,0.3618,67695.0,67694.0,0.11083289]
[1730743733218,0.3618,67695.0,67694.0,0.11183289]
[1730743733415,0.3618,67695.0,67694.0,0.22959902]
[1730743733599,0.434701,67695.0,67694.0,0.16571933]
[1730743733803,0.434701,67695.0,67694.0,0.16871933]
[1730743734410,0.3608,67695.0,67694.0,0.16871933]
[1730743734715,0.3608,67695.0,67694.0,0.24262133]
[1730743735107,0.3608,67695.0,67694.0,0.27955222]
[1730743735710,0.30904299,67695.0,67694.0,0.61067563]
[1730743736014,0.30904299,67695.0,67694.0,0.4825257]
[1730743736209,0.30904299,67695.0,67694.0,0.29824923]
[1730743736513,0.38294399,67695.0,67694.0,0.07786178]
[1730743736702,0.30904299,67695.0,67694.0,0.07786178]
[1730743737014,0.38294399,67695.0,67694.0,0.20565022]
[1730743738608,0.38294399,67695.0,67694.0,0.20365022]
[1730743738805,0.38294399,67695.0,67694.0,0.20165022]
[1730743739109,0.38394399,67695.0,67694.0,0.20165022]
[1730743739501,0.38394399,67695.0,67694.0,0.27544974]
[1730743739502,0.31904299,67695.0,67694.0,0.27544974]
[1730743739707,0.31904299,67695.0,67694.0,0.29424662]
[1730743739925,0.31904299,67695.0,67694.0,0.36814605]
[1730743740112,0.31904299,67695.0,67694.0,0.45669331]
[1730743740302,0.31904299,67695.0,67694.0,0.36814605]
[1730743741122,0.31904299,67695.0,67694.0,0.3681361]
[1730743742717,0.31904299,67695.0,67694.0,0.45668336]
[1730743743019,0.31404299,67695.0,67694.0,0.45665359]
[1730743743211,0.31504299,67695.0,67694.0,0.3721361]
[1730743743915,0.31504299,67695.0,67694.0,0.48193134]
[1730743744115,0.31104299,67695.0,67694.0,0.48693134]
[1730743744311,0.31104299,67695.0,67694.0,0.32218431]
[1730743744510,0.38494399,67695.0,67694.0,0.32218431]
[1730743744720,0.38494399,67695.0,67693.0,0.06586288]
[1730743744919,0.31104299,67695.0,67693.0,0.04140494]
[1730743745115,0.073923,67675.0,67674.0,0.10329826]
[1730743745306,0.073923,67675.0,67664.0,0.13240238]